[Event "Chpt Reg Jeunes Occitanie 2026 - Espalion"]
[Site "Espalion, France"]
[Round "5.18"]
[ECO "?"]
[Annotator "?"]
[TimeControl "1h30 + 30sec/cp"]

1. e4 {[%clk 1:30:58][%emt 0:00:01]} 1... c5 {[%clk 1:30:53][%emt 0:00:07]} 2.
Nf3 {[%clk 1:31:24]} 2... d6 {[%clk 1:30:53]} 3. d4 {[%clk 1:31:24]} 3... cxd4
{[%clk 1:30:53]} 4. Nxd4 {[%clk 1:30:44][%emt 0:02:40]} 4... Nf6 {[%clk
1:31:09][%emt 0:00:19]} 5. Nc3 {[%clk 1:30:50]} 5... a6 {[%clk 1:31:07][%emt
0:00:55]} 6. Bc4 {[%clk 1:25:50]} 6... e5 {[%clk 1:31:24][%emt 0:05:43]} 7.
Nf3 {[%clk 1:25:57]} 7... Be7 {[%clk 1:31:34][%emt 0:00:43]} 8. Bg5 {[%clk
1:24:10]} 8... h6 {[%clk 1:31:33][%emt 0:02:48]} 9. Bh4 {[%clk 1:23:29]} 9...
O-O {[%clk 1:31:33]} 10. Qd3 {[%clk 1:23:29]} 10... Qc7 {[%clk 1:31:33]} 11.
O-O {[%clk 1:23:29]} 11... Nc6 {[%clk 1:31:33]} 12. Rad1 {[%clk 1:23:29]}
12... Rd8 {[%clk 1:31:33]} 13. Bxf6 {[%clk 1:23:29]} 13... Bxf6 {[%clk
1:31:33]} 14. Qe3 {[%clk 1:23:29]} 14... Ne7 {[%clk 1:31:33]} 15. Bb3 {[%clk
1:23:29]} 15... Be6 {[%clk 1:31:33]} 16. Nd5 {[%clk 1:23:29]} 16... Nxd5
{[%clk 1:31:33]} 17. exd5 {[%clk 1:23:29]} 17... Bf5 {[%clk 1:31:33]} 18. Rc1
{[%clk 1:23:29]} 18... a5 {[%clk 1:31:33]} 19. a4 {[%clk 1:23:29]} 19... e4
{[%clk 1:31:33]} 20. Nd4 {[%clk 1:23:29]} 20... Bg5 {[%clk 1:31:33]} 21. Qg3
{[%clk 1:23:29]} 21... Bxc1 {[%clk 1:31:33]} 22. Nxf5 {[%clk 1:23:29]} 22...
Bxb2 {[%clk 1:31:33]} 23. Nxh6+ {[%clk 1:23:29]} 23... Kh8 {[%clk 1:31:33]}
24. Nf5 {[%clk 1:23:29]} 24... Bf6 {[%clk 1:31:33]} 25. Qg4 {[%clk 1:23:29]}
25... Qd7 {[%clk 1:31:33]} 26. Qxe4 {[%clk 1:23:29]} 26... g6 {[%clk 1:31:33]}
27. Ng3 {[%clk 1:23:29]} 27... Re8 {[%clk 1:31:33]} 28. Qf4 {[%clk 1:23:29]}
28... Be5 {[%clk 1:31:33]} 29. Qh6+ {[%clk 1:23:29]} 29... Kg8 {[%clk 1:31:33]}
 30. Ne4 {[%clk 1:23:29]} 30... Bg7 {[%clk 1:31:33]} 31. Qg5 {[%clk 1:23:29]}
31... Rxe4 {[%clk 1:31:33]} 32. f3 {[%clk 1:23:29]} 32... Re2 {[%clk 1:31:33]}
33. Qg4 {[%clk 1:23:29]} 33... Qxg4 {[%clk 1:31:33]} 34. fxg4 {[%clk 1:23:29]}
34... Bd4+ {[%clk 1:31:33]} 35. Kh1 {[%clk 1:23:29]} 35... Rae8 {[%clk
1:31:33]} 36. h4 {[%clk 1:23:29]} 36... Re1 {[%clk 1:31:33]} 37. Rxe1 {[%clk
1:23:29]} 37... Rxe1+ {[%clk 1:31:33]} 38. Kh2 {[%clk 1:23:29]} 38... Be5+
{[%clk 1:31:33]} 39. g3 {[%clk 1:23:29]} 39... Re2+ {[%clk 1:31:33]} 40. Kh3
{[%clk 1:23:29]} 40... Re3 {[%clk 1:31:33]} 41. h5 {[%clk 1:23:29]} 41... g5
{[%clk 1:31:33]} 42. Kg2 {[%clk 1:23:29]} 42... Rxg3+ {[%clk 1:31:33]} 43. Kf2
{[%clk 1:23:29]} 43... Rxg4 {[%clk 1:31:33]} 44. c4 {[%clk 1:23:29]} 44... f5
{[%clk 1:31:33]} 45. c5 {[%clk 1:23:29]} 45... Bd4+ {[%clk 1:31:33]} 46. Kf3
{[%clk 1:23:29]} 46... Bxc5 {[%clk 1:31:33]} 47. Bc2 {[%clk 1:23:29]} 47...
Rf4+ {[%clk 1:31:33]} 48. Kg3 {[%clk 1:23:29]} 48... Rf2 {[%clk 1:31:33]} 49.
Bd3 {[%clk 1:23:29]} 49... Rf4 {[%clk 1:31:33]} 50. Be2 {[%clk 1:23:29]} 50...
Rxa4 {[%clk 1:31:33]} 51. h6 {[%clk 1:23:29]} 51... Rf4 {[%clk 1:31:33]} 52.
Bh5 {[%clk 1:23:29]} 52... Kh7 {[%clk 1:31:33]} 53. Bf3 {[%clk 1:23:29]} 53...
a4 {[%clk 1:31:33]} 54. Bd1 {[%clk 1:23:29]} 54... a3 {[%clk 1:31:33]} 55. Bb3
{[%clk 1:23:29]} 55... Rb4 {[%clk 1:31:33]} 56. Ba2 {[%clk 1:23:29]} 56... b5
{[%clk 1:31:33]} 57. Kf3 {[%clk 1:23:29]} 57... Rb2 {[%clk 1:31:33]} 58. Kg3
{[%clk 1:23:29]} 58... Rxa2 {[%clk 1:31:33]} 59. Kf3 {[%clk 1:23:29]} 59...
Rf2+ {[%clk 1:31:33]} 60. Kg3 {[%clk 1:23:29]} 60... a2 {[%clk 1:31:33]} 61.
Kh3 {[%clk 1:23:29]} 61... a1=Q {[%clk 1:31:33]} 62. Kg3 {[%clk 1:23:29]}
62... Qg1+ {[%clk 1:31:33]} 63. Kh3 {[%clk 1:23:29]} 63... Rh2# {[%clk
1:31:33]} 0-1

[White "MORA GRELLIER, Tizio"]
[Black "DEMANT, Thylan"]
[WhiteElo "1612"]
[BlackElo "1586"]
[Result "1/2-1/2"]
[Date "2026.03.06"]

[Event "Chpt Reg Jeunes Occitanie 2026 - Espalion"]
[Site "Espalion, France"]
[Round "5.19"]
[ECO "?"]
[Annotator "?"]
[TimeControl "1h30 + 30sec/cp"]

1. d4 {[%clk 1:30:57][%emt 0:00:02]} 1... Nf6 {[%clk 1:30:56][%emt 0:00:05]}
2. Bf4 {[%clk 1:31:20][%emt 0:00:06]} 2... e6 {[%clk 1:31:14][%emt 0:00:11]}
3. Nf3 {[%clk 1:31:40][%emt 0:00:12]} 3... d5 {[%clk 1:31:35][%emt 0:00:08]}
4. h3 {[%clk 1:31:59][%emt 0:00:11]} 4... c5 {[%clk 1:31:53][%emt 0:00:13]} 5.
e3 {[%clk 1:31:29][%emt 0:01:00]} 5... Nc6 {[%clk 1:32:05][%emt 0:00:17]} 6.
Nbd2 {[%clk 1:29:53][%emt 0:02:07]} 6... Bd6 {[%clk 1:30:44][%emt 0:01:50]} 7.
Bxd6 {[%clk 1:30:03][%emt 0:00:20]} 7... Qxd6 {[%clk 1:31:07][%emt 0:00:07]}
8. c3 {[%clk 1:30:03][%emt 0:00:31]} 8... O-O {[%clk 1:31:28][%emt 0:00:08]}
9. Bb5 {[%clk 1:27:06][%emt 0:03:28]} 9... a6 {[%clk 1:31:47][%emt 0:00:11]}
10. Be2 {[%clk 1:27:31][%emt 0:00:05]} 10... b5 {[%clk 1:32:09][%emt 0:00:09]}
11. O-O {[%clk 1:27:40][%emt 0:00:20]} 11... c4 {[%clk 1:32:31][%emt 0:00:08]}
12. b3 {[%clk 1:23:14][%emt 0:04:57]} 12... Re8 {[%clk 1:30:45][%emt 0:02:16]}
13. a4 {[%clk 1:19:58][%emt 0:03:46]} 13... Rb8 {[%clk 1:30:37][%emt 0:00:38]}
14. Re1 {[%clk 1:13:28][%emt 0:07:00]} 14... e5 {[%clk 1:30:23][%emt 0:00:43]}
15. bxc4 {[%clk 1:13:53][%emt 0:00:06]} 15... bxc4 {[%clk 1:30:24][%emt
0:00:28]} 16. dxe5 {[%clk 1:13:28][%emt 0:00:56]} 16... Nxe5 {[%clk
1:29:48][%emt 0:01:06]} 17. Nxc4 {[%clk 1:12:28][%emt 0:01:30]} 17... Nxf3+
{[%clk 1:28:48][%emt 0:01:29]} 18. Bxf3 {[%clk 1:12:15][%emt 0:00:43]} 18...
Qc5 {[%clk 1:28:46][%emt 0:00:28]} 19. Na3 {[%clk 1:07:12][%emt 0:05:38]}
19... Qxc3 {[%clk 1:28:37][%emt 0:00:38]} 20. Bxd5 {[%clk 1:07:07][%emt
0:00:35]} 20... Nxd5 {[%clk 1:28:55][%emt 0:00:12]} 21. Qxd5 {[%clk
1:07:20][%emt 0:00:17]} 21... Be6 {[%clk 1:29:08][%emt 0:00:17]} 22. Qd4
{[%clk 1:02:30][%emt 0:05:21]} 22... Qxd4 {[%clk 1:27:50][%emt 0:01:48]} 23.
exd4 {[%clk 1:02:22][%emt 0:00:38]} 23... Rb4 {[%clk 1:28:13][%emt 0:00:06]}
24. d5 {[%clk 1:00:09][%emt 0:02:44]} 24... Bd7 {[%clk 1:28:29][%emt 0:00:12]}
25. Rxe8+ {[%clk 0:46:29][%emt 0:14:11]} 25... Bxe8 {[%clk 1:28:51][%emt
0:00:09]} 26. Rc1 {[%clk 0:46:43][%emt 0:00:16]} 26... Rxa4 {[%clk
1:28:52][%emt 0:00:28]} 27. Rc8 {[%clk 0:46:59][%emt 0:00:14]} 27... Kf8
{[%clk 1:29:06][%emt 0:00:16]} 28. Nc2 {[%clk 0:47:04][%emt 0:00:25]} 28...
Ke7 {[%clk 1:28:50][%emt 0:00:46]} 29. Ne3 {[%clk 0:37:07][%emt 0:10:27]}
29... Bd7 {[%clk 1:26:12][%emt 0:03:07]} 30. Rc7 {[%clk 0:35:30][%emt 0:02:08]}
 30... g6 {[%clk 1:24:55][%emt 0:01:47]} 31. Nc4 {[%clk 0:28:33][%emt 0:07:25]}
 31... Ra1+ {[%clk 1:15:56][%emt 0:09:31]} 32. Kh2 {[%clk 0:28:21][%emt
0:00:42]} 32... Kd8 {[%clk 1:16:00][%emt 0:00:27]} 33. d6 {[%clk 0:23:11][%emt
0:05:40]} 33... Rc1 {[%clk 1:10:52][%emt 0:05:37]} 34. Kg3 {[%clk
0:01:28][%emt 0:22:14]} 34... Bb5 {[%clk 1:10:58][%emt 0:00:23]} 35. Na3
{[%clk 0:00:53][%emt 0:01:06]} 35... Rxc7 {[%clk 1:11:17][%emt 0:00:11]} 36.
dxc7+ {[%clk 0:01:22]} 36... Kxc7 {[%clk 1:11:36][%emt 0:00:11]} 37. Kf4
{[%clk 0:01:47][%emt 0:00:05]} 37... h5 {[%clk 1:11:39][%emt 0:00:26]} 38. g4
{[%clk 0:02:04][%emt 0:00:13]} 38... hxg4 {[%clk 1:11:47][%emt 0:00:22]} 39.
hxg4 {[%clk 0:02:28][%emt 0:00:06]} 39... Kd6 {[%clk 1:12:10][%emt 0:00:07]}
40. Kg5 {[%clk 0:02:14][%emt 0:00:44]} 40... Ba4 {[%clk 1:12:30][%emt 0:00:10]}
 41. Kf6 {[%clk 0:02:21][%emt 0:00:23]} 41... Bb3 {[%clk 1:12:50][%emt
0:00:10]} 42. f4 {[%clk 0:02:12][%emt 0:00:39]} 42... Kc5 {[%clk 1:12:56][%emt
0:00:23]} 43. f5 {[%clk 0:02:08][%emt 0:00:35]} 43... gxf5 {[%clk
1:13:09][%emt 0:00:17]} 44. gxf5 {[%clk 0:00:34][%emt 0:02:04]} 44... Kd4
{[%clk 1:13:26][%emt 0:00:11]} 45. Nb1 {[%clk 0:00:34][%emt 0:00:32]} 45... a5
{[%clk 1:13:40][%emt 0:00:17]} 46. Ke7 {[%clk 0:00:35][%emt 0:00:29]} 46... a4
{[%clk 1:13:52][%emt 0:00:17]} 47. f6 {[%clk 0:00:49][%emt 0:00:16]} 47... Kd3
{[%clk 1:14:13][%emt 0:00:09]} 48. Kf8 {[%clk 0:01:04][%emt 0:00:16]} 48...
Kc2 {[%clk 1:14:34][%emt 0:00:08]} 49. Na3+ {[%clk 0:01:25][%emt 0:00:10]}
49... Kb2 {[%clk 1:14:54][%emt 0:00:10]} 50. Nb5 {[%clk 0:00:55][%emt 0:00:59]}
 50... Bc4 {[%clk 1:14:51][%emt 0:00:32]} 51. Nd6 {[%clk 0:01:02][%emt
0:00:24]} 51... Kb3 {[%clk 1:14:38][%emt 0:00:43]} 52. Nxc4 {[%clk
0:01:15][%emt 0:00:18]} 52... Kxc4 {[%clk 1:15:02][%emt 0:00:06]} 53. Kxf7
{[%clk 0:01:37][%emt 0:00:07]} 53... a3 {[%clk 1:15:26][%emt 0:00:06]} 54. Ke7
{[%clk 0:01:55][%emt 0:00:12]} 54... a2 {[%clk 1:15:49][%emt 0:00:07]} 55. f7
{[%clk 0:02:13][%emt 0:00:12]} 55... a1=Q {[%clk 1:16:04][%emt 0:00:13]} 56.
f8=Q {[%clk 0:02:30][%emt 0:00:13]} 56... Qe5+ {[%clk 1:16:15][%emt 0:00:19]}
57. Kf7 {[%clk 0:02:27][%emt 0:00:33]} 57... Kd5 {[%clk 1:16:26][%emt 0:00:20]}
 58. Qd8+ {[%clk 0:02:25][%emt 0:00:33]} 58... Kc4 {[%clk 1:16:38][%emt
0:00:14]} 59. Qc8+ {[%clk 0:02:30][%emt 0:00:27]} 59... Kd4 {[%clk
1:16:56][%emt 0:00:12]} 60. Qd8+ {[%clk 0:02:22][%emt 0:00:39]} 60... Kc3
{[%clk 1:16:53][%emt 0:00:30]} 61. Qf6 {[%clk 0:01:23][%emt 0:01:31]} 61...
Qxf6+ {[%clk 1:17:16][%emt 0:00:08]} 62. Kxf6 {[%clk 0:01:48][%emt 0:00:05]} 1/2-1/2

[White "BENNANI, Johan"]
[Black "LEMOINE, Luka"]
[WhiteElo "1531"]
[BlackElo "1691"]
[Result "0-1"]
[Date "2026.03.06"]

[Event "Chpt Reg Jeunes Occitanie 2026 - Espalion"]
[Site "Espalion, France"]
[Round "5.20"]
[ECO "?"]
[Annotator "?"]
[TimeControl "1h30 + 30sec/cp"]

1. d4 {[%clk 1:30:58][%emt 0:00:02]} 1... d5 {[%clk 1:30:50][%emt 0:00:11]} 2.
Nf3 {[%clk 1:31:20][%emt 0:00:08]} 2... Nf6 {[%clk 1:30:55][%emt 0:00:26]} 3.
Bf4 {[%clk 1:31:14][%emt 0:00:36]} 3... c5 {[%clk 1:30:58][%emt 0:00:27]} 4.
c3 {[%clk 1:31:21][%emt 0:00:23]} 4... Qb6 {[%clk 1:30:59][%emt 0:00:28]} 5.
e3 {[%clk 1:30:28][%emt 0:01:24]} 5... Qxb2 {[%clk 1:28:27][%emt 0:03:01]} 6.
Nbd2 {[%clk 1:28:27][%emt 0:02:30]} 6... c4 {[%clk 1:25:09][%emt 0:03:49]} 7.
Qc1 {[%clk 1:28:09][%emt 0:00:48]} 7... Qxc1+ {[%clk 1:23:05][%emt 0:02:35]}
8. Rxc1 {[%clk 1:28:27][%emt 0:00:11]} 8... Nh5 {[%clk 1:22:12][%emt 0:01:23]}
9. Bc7 {[%clk 1:26:53][%emt 0:02:04]} 9... Na6 {[%clk 1:21:41][%emt 0:01:01]}
10. Bg3 {[%clk 1:26:48][%emt 0:00:35]} 10... Nxg3 {[%clk 1:21:34][%emt
0:00:36]} 11. hxg3 {[%clk 1:27:13][%emt 0:00:05]} 11... f6 {[%clk
1:19:34][%emt 0:02:30]} 12. e4 {[%clk 1:26:42][%emt 0:01:02]} 12... e6 {[%clk
1:19:27][%emt 0:00:37]} 13. Rh5 {[%clk 1:26:24][%emt 0:00:48]} 13... g6 {[%clk
1:17:28][%emt 0:02:30]} 14. Rh1 {[%clk 1:26:22][%emt 0:00:32]} 14... h5 {[%clk
1:14:05][%emt 0:03:53]} 15. Nh4 {[%clk 1:26:11][%emt 0:00:40]} 15... g5 {[%clk
1:14:20][%emt 0:00:14]} 16. Ng6 {[%clk 1:26:14][%emt 0:00:28]} 16... Rh6
{[%clk 1:14:32][%emt 0:00:19]} 17. Nxf8 {[%clk 1:26:33][%emt 0:00:10]} 17...
Kxf8 {[%clk 1:14:57][%emt 0:00:05]} 18. Be2 {[%clk 1:26:47][%emt 0:00:17]}
18... h4 {[%clk 1:14:32][%emt 0:00:56]} 19. gxh4 {[%clk 1:26:06][%emt 0:01:11]}
 19... Rxh4 {[%clk 1:14:28][%emt 0:00:34]} 20. Rxh4 {[%clk 1:26:19][%emt
0:00:17]} 20... gxh4 {[%clk 1:14:51][%emt 0:00:05]} 21. Bg4 {[%clk
1:25:35][%emt 0:01:15]} 21... dxe4 {[%clk 1:14:26][%emt 0:00:55]} 22. Nxe4
{[%clk 1:25:54][%emt 0:00:11]} 22... f5 {[%clk 1:14:39][%emt 0:00:17]} 23.
Bxf5 {[%clk 1:24:32][%emt 0:01:52]} 23... exf5 {[%clk 1:15:04][%emt 0:00:06]}
24. Nd6 {[%clk 1:24:50][%emt 0:00:12]} 24... Be6 {[%clk 1:15:07][%emt 0:00:27]}
 25. Nxb7 {[%clk 1:25:13][%emt 0:00:07]} 25... Rb8 {[%clk 1:15:29][%emt
0:00:08]} 26. Nd6 {[%clk 1:24:23][%emt 0:01:20]} 26... Rb6 {[%clk
1:15:33][%emt 0:00:25]} 27. d5 {[%clk 1:24:22][%emt 0:00:31]} 27... Rxd6
{[%clk 1:15:58][%emt 0:00:05]} 28. dxe6 {[%clk 1:24:41][%emt 0:00:11]} 28...
Rxe6+ {[%clk 1:16:24][%emt 0:00:05]} 29. Kd2 {[%clk 1:24:51][%emt 0:00:20]}
29... Nc5 {[%clk 1:16:35][%emt 0:00:18]} 30. Kc2 {[%clk 1:24:30][%emt 0:00:51]}
 30... Re2+ {[%clk 1:16:56][%emt 0:00:09]} 31. Kb1 {[%clk 1:24:10][%emt
0:00:50]} 31... Nd3 {[%clk 1:17:15][%emt 0:00:11]} 32. Rc2 {[%clk
1:23:37][%emt 0:01:04]} 32... Re1+ {[%clk 1:17:38][%emt 0:00:07]} 0-1

[White "TOURETTE, Maxence"]
[Black "BENYETTOU, Louis"]
[WhiteElo "1709"]
[BlackElo "1841"]
[Result "1/2-1/2"]
[Date "2026.03.06"]

[Event "Chpt Reg Jeunes Occitanie 2026 - Espalion"]
[Site "Espalion, France"]
[Round "6.16"]
[ECO "?"]
[Annotator "?"]
[TimeControl "1h30 + 30sec/cp"]

1. d4 {[%clk 1:30:48][%emt 0:00:11]} 1... d5 {[%clk 1:30:56][%emt 0:00:04]} 2.
f4 {[%clk 1:30:59][%emt 0:00:19]} 2... Nf6 {[%clk 1:30:29][%emt 0:00:57]} 3.
e3 {[%clk 1:31:14][%emt 0:00:15]} 3... c5 {[%clk 1:30:22][%emt 0:00:37]} 4. c3
{[%clk 1:31:27][%emt 0:00:18]} 4... Bf5 {[%clk 1:27:42][%emt 0:03:10]} 5. Bd3
{[%clk 1:29:54][%emt 0:02:02]} 5... Bxd3 {[%clk 1:27:48][%emt 0:00:22]} 6.
Qxd3 {[%clk 1:30:00][%emt 0:00:26]} 6... c4 {[%clk 1:27:52][%emt 0:00:26]} 7.
Qc2 {[%clk 1:30:06][%emt 0:00:25]} 7... Nc6 {[%clk 1:28:03][%emt 0:00:18]} 8.
Nf3 {[%clk 1:30:07][%emt 0:00:29]} 8... e6 {[%clk 1:27:55][%emt 0:00:38]} 9.
Nbd2 {[%clk 1:30:04][%emt 0:00:33]} 9... Be7 {[%clk 1:24:47][%emt 0:03:38]}
10. Ne5 {[%emt 0:15:09]} 10... Nxe5 {[%clk 1:20:01]} 11. dxe5 {[%clk
1:18:33][%emt 0:02:37]} 11... Ng4 {[%clk 1:19:15][%emt 0:01:16]} 12. Nf3
{[%clk 1:18:31][%emt 0:00:32]} 12... f6 {[%clk 1:17:54][%emt 0:01:51]} 13. h3
{[%clk 1:17:28][%emt 0:01:33]} 13... Nh6 {[%clk 1:18:07][%emt 0:00:17]} 14. g4
{[%clk 1:14:35][%emt 0:03:24]} 14... fxe5 {[%clk 1:12:17][%emt 0:06:20]} 15.
Nxe5 {[%clk 1:14:18][%emt 0:00:46]} 15... O-O {[%clk 1:11:33][%emt 0:01:13]}
16. Bd2 {[%clk 1:13:29][%emt 0:01:20]} 16... Bd6 {[%clk 1:08:10][%emt 0:03:53]}
 17. Nf3 {[%clk 1:12:59][%emt 0:01:00]} 17... e5 {[%clk 1:05:05][%emt 0:03:35]}
 18. O-O-O {[%clk 1:12:15][%emt 0:01:13]} 18... exf4 {[%clk 1:02:01][%emt
0:03:34]} 19. e4 {[%clk 1:10:31][%emt 0:02:16]} 19... Bc5 {[%clk 0:51:24][%emt
0:11:06]} 20. g5 {[%clk 1:03:28][%emt 0:07:33]} 20... Nf7 {[%emt 0:05:21]} 1/2-1/2

[White "AMRANE, Samy-Islam"]
[Black "LABARBE, Gabriel"]
[WhiteElo "1809"]
[BlackElo "1731"]
[Result "1/2-1/2"]
[Date "2026.03.06"]

[Event "Chpt Reg Jeunes Occitanie 2026 - Espalion"]
[Site "Espalion, France"]
[Round "6.17"]
[ECO "?"]
[Annotator "?"]
[TimeControl "1h30 + 30sec/cp"]

1. e4 {[%clk 1:30:55][%emt 0:00:05]} 1... e5 {[%clk 1:30:55][%emt 0:00:05]} 2.
Nf3 {[%clk 1:31:16][%emt 0:00:08]} 2... Nf6 {[%clk 1:31:19][%emt 0:00:06]} 3.
Nc3 {[%clk 1:30:56][%emt 0:00:51]} 3... Nc6 {[%clk 1:31:25][%emt 0:00:24]} 4.
d3 {[%clk 1:30:41][%emt 0:00:45]} 4... d6 {[%clk 1:30:01][%emt 0:01:54]} 5.
Be2 {[%clk 1:29:58][%emt 0:01:12]} 5... Be7 {[%clk 1:29:55][%emt 0:00:37]} 6.
O-O {[%clk 1:29:47][%emt 0:00:41]} 6... h6 {[%clk 1:29:36][%emt 0:00:49]} 7.
Be3 {[%clk 1:29:45][%emt 0:00:32]} 7... O-O {[%clk 1:28:27][%emt 0:01:40]} 8.
h3 {[%clk 1:30:04][%emt 0:00:10]} 8... Be6 {[%clk 1:27:11][%emt 0:01:47]} 9.
Re1 {[%clk 1:27:40][%emt 0:02:53]} 9... Qd7 {[%clk 1:24:26][%emt 0:03:16]} 10.
Bf1 {[%clk 1:25:50][%emt 0:02:18]} 10... Rad8 {[%clk 1:21:37][%emt 0:03:22]}
11. Qe2 {[%clk 1:23:07][%emt 0:03:12]} 11... Kh7 {[%clk 1:20:22][%emt 0:01:45]}
 12. Nh2 {[%clk 1:22:21][%emt 0:01:16]} 12... Rh8 {[%clk 1:20:16][%emt
0:00:37]} 13. f4 {[%clk 1:19:11][%emt 0:03:40]} 13... exf4 {[%clk
1:19:36][%emt 0:01:09]} 14. Bxf4 {[%clk 1:18:10][%emt 0:01:32]} 14... g6
{[%clk 1:11:58][%emt 0:08:08]} 15. Rad1 {[%clk 1:17:40][%emt 0:01:00]} 15...
Nh5 {[%clk 1:12:07][%emt 0:00:21]} 16. Be3 {[%clk 1:16:37][%emt 0:01:32]}
16... Bf6 {[%clk 1:08:15][%emt 0:04:22]} 17. d4 {[%clk 1:16:27][%emt 0:00:41]}
17... d5 {[%clk 1:03:40][%emt 0:05:04]} 18. e5 {[%clk 1:16:03][%emt 0:00:55]}
18... Be7 {[%clk 1:00:41][%emt 0:03:28]} 19. Qf3 {[%clk 1:15:54][%emt 0:00:36]}
 19... Ng7 {[%clk 1:00:23][%emt 0:00:51]} 20. Ng4 {[%clk 1:15:41][%emt
0:00:43]} 20... Nf5 {[%clk 0:55:43][%emt 0:05:10]} 21. Bf2 {[%clk
1:09:10][%emt 0:07:02]} 21... h5 {[%clk 0:54:00][%emt 0:02:13]} 22. Nf6+
{[%clk 1:07:20][%emt 0:02:20]} 22... Bxf6 {[%clk 0:53:23][%emt 0:01:06]} 23.
exf6 {[%clk 1:07:30][%emt 0:00:19]} 23... Qd6 {[%clk 0:48:52][%emt 0:05:01]}
24. Nb5 {[%clk 1:06:11][%emt 0:01:51]} 24... Qd7 {[%clk 0:48:24][%emt 0:00:58]}
 25. Nc3 {[%clk 1:05:46][%emt 0:00:55]} 25... a6 {[%clk 0:48:41][%emt 0:00:14]}
 26. a3 {[%clk 0:52:49][%emt 0:13:26]} 26... Kg8 {[%clk 0:47:45][%emt 0:01:24]}
 27. Qf4 {[%clk 0:50:34][%emt 0:02:44]} 27... Na7 {[%clk 0:41:04][%emt
0:07:09]} 28. Bd3 {[%clk 0:48:20][%emt 0:02:48]} 28... Nc8 {[%clk
0:41:21][%emt 0:00:14]} 29. Bxf5 {[%clk 0:45:12][%emt 0:03:38]} 29... Bxf5
{[%clk 0:41:35][%emt 0:00:16]} 30. Rd2 {[%clk 0:45:30][%emt 0:00:12]} 30...
Be6 {[%clk 0:41:33][%emt 0:00:32]} 31. Rde2 {[%clk 0:45:04][%emt 0:00:55]}
31... Nd6 {[%clk 0:37:28][%emt 0:04:36]} 32. Qg5 {[%clk 0:44:21][%emt 0:01:08]}
 32... Nf5 {[%clk 0:34:30][%emt 0:03:28]} 33. b3 {[%clk 0:40:37][%emt 0:04:20]}
 33... b5 {[%emt 0:04:06]} 1/2-1/2

[White "BAROUKH, Pau"]
[Black "BONDAR, Marko"]
[WhiteElo "1712"]
[BlackElo "1609"]
[Result "1/2-1/2"]
[Date "2026.03.06"]

[Event "Chpt Reg Jeunes Occitanie 2026 - Espalion"]
[Site "Espalion, France"]
[Round "6.18"]
[ECO "?"]
[Annotator "?"]
[TimeControl "1h30 + 30sec/cp"]

1. e4 {[%clk 1:30:59][%emt 0:00:01]} 1... e5 {[%clk 1:30:58][%emt 0:00:02]} 2.
Nf3 {[%clk 1:31:16][%emt 0:00:12]} 2... Nc6 {[%clk 1:31:07][%emt 0:00:22]} 3.
Bb5 {[%clk 1:31:30][%emt 0:00:16]} 3... a6 {[%clk 1:31:20][%emt 0:00:18]} 4.
Ba4 {[%clk 1:31:50][%emt 0:00:09]} 4... b5 {[%clk 1:31:42][%emt 0:00:07]} 5.
Bb3 {[%clk 1:32:16][%emt 0:00:05]} 5... Nf6 {[%clk 1:31:55][%emt 0:00:17]} 6.
O-O {[%clk 1:31:25][%emt 0:01:19]} 6... Bc5 {[%clk 1:32:19][%emt 0:00:07]} 7.
Re1 {[%clk 1:30:42][%emt 0:01:12]} 7... O-O {[%clk 1:32:34][%emt 0:00:15]} 8.
c3 {[%clk 1:30:17][%emt 0:00:55]} 8... Re8 {[%clk 1:32:29][%emt 0:00:35]} 9.
d4 {[%clk 1:29:30][%emt 0:01:17]} 9... exd4 {[%clk 1:32:50][%emt 0:00:09]} 10.
cxd4 {[%clk 1:29:51][%emt 0:00:09]} 10... Bb4 {[%clk 1:33:06][%emt 0:00:15]}
11. Nc3 {[%clk 1:28:03][%emt 0:02:17]} 11... Bxc3 {[%clk 1:33:17][%emt
0:00:18]} 12. bxc3 {[%clk 1:28:22][%emt 0:00:11]} 12... Nxe4 {[%clk
1:33:43][%emt 0:00:04]} 13. Bxf7+ {[%clk 1:28:07][%emt 0:00:45]} 13... Kxf7
{[%clk 1:33:24][%emt 0:00:48]} 14. Rxe4 {[%clk 1:28:25][%emt 0:00:13]} 14...
Rxe4 {[%clk 1:32:12][%emt 0:01:42]} 15. Ng5+ {[%clk 1:28:44][%emt 0:00:10]}
15... Kg8 {[%clk 1:31:42][%emt 0:01:00]} 16. Nxe4 {[%clk 1:29:02][%emt
0:00:12]} 16... d6 {[%clk 1:31:59][%emt 0:00:13]} 17. Ng5 {[%clk 1:27:35][%emt
0:01:56]} 17... Bb7 {[%clk 1:31:59][%emt 0:00:32]} 18. Qg4 {[%clk
1:22:19][%emt 0:05:46]} 18... Qe7 {[%clk 1:28:54][%emt 0:03:34]} 19. Bd2
{[%clk 1:20:59][%emt 0:01:50]} 19... Re8 {[%clk 1:29:00][%emt 0:00:24]} 20. h3
{[%clk 1:20:27][%emt 0:01:02]} 20... Qf6 {[%clk 1:28:32][%emt 0:00:58]} 21.
Nxh7 {[%clk 1:05:53][%emt 0:15:04]} 21... Qe6 {[%clk 1:26:48][%emt 0:02:14]}
22. Qxe6+ {[%clk 1:05:24][%emt 0:01:00]} 22... Rxe6 {[%clk 1:27:08][%emt
0:00:09]} 23. d5 {[%clk 1:05:48][%emt 0:00:06]} 23... Re2 {[%clk 1:27:12][%emt
0:00:26]} 24. dxc6 {[%clk 1:06:12][%emt 0:00:06]} 24... Bxc6 {[%clk
1:27:27][%emt 0:00:15]} 25. Bg5 {[%clk 1:05:16][%emt 0:01:26]} 25... Kxh7
{[%clk 1:27:27][%emt 0:00:29]} 26. Bd8 {[%clk 1:05:30][%emt 0:00:17]} 26...
Rc2 {[%clk 1:27:35][%emt 0:00:21]} 27. Bxc7 {[%clk 1:05:34][%emt 0:00:27]}
27... Rxc3 {[%clk 1:27:46][%emt 0:00:18]} 28. Bxd6 {[%clk 1:05:59][%emt
0:00:07]} 28... a5 {[%clk 1:27:51][%emt 0:00:25]} 29. a3 {[%clk 1:05:44][%emt
0:00:44]} 29... Rd3 {[%clk 1:27:29][%emt 0:00:52]} 30. Bc7 {[%clk
1:04:42][%emt 0:01:33]} 30... a4 {[%clk 1:26:32][%emt 0:01:27]} 31. Ba5 {[%clk
1:04:15][%emt 0:00:57]} 31... Kh6 {[%clk 1:26:27][%emt 0:00:34]} 32. Bb4
{[%clk 1:04:17][%emt 0:00:29]} 32... Rd5 {[%clk 1:26:35][%emt 0:00:20]} 33.
Re1 {[%clk 1:04:16][%emt 0:00:32]} 33... Kh5 {[%clk 1:26:43][%emt 0:00:21]}
34. g4+ {[%clk 1:04:06][%emt 0:00:42]} 34... Kh4 {[%clk 1:26:39][%emt 0:00:33]}
 35. Kh2 {[%clk 1:04:14][%emt 0:00:22]} 35... Rd3 {[%clk 1:26:43][%emt
0:00:26]} 36. Be7+ {[%clk 1:03:10][%emt 0:01:34]} 36... g5 {[%clk
1:26:33][%emt 0:00:40]} 1/2-1/2

[White "LEMOINE, Luka"]
[Black "JOYEUX, Gaspard"]
[WhiteElo "1691"]
[BlackElo "1559"]
[Result "1-0"]
[Date "2026.03.06"]